fUST/lending_fUST_20240429
["ID","MTS","AMOUNT","RATE_DAILY","PERIOD"]
[324852613,1714373455555,-151.0,0.00013699,2]
[324852614,1714373455564,-151.0,0.00013699,2]
[324852615,1714373455573,-208.506922,0.00013699,2]
[324852616,1714373455583,-615.913097,0.00013699,2]
[324852617,1714373455592,-615.913097,0.00013699,2]
[324852618,1714373455601,-615.913097,0.00013699,2]
[324852619,1714373455610,-615.913097,0.00013699,2]
[324852620,1714373455620,-615.913097,0.00013699,2]
[324852621,1714373455629,-615.913097,0.00013699,2]
[324852622,1714373455638,-615.913097,0.00013699,2]
[324852623,1714373455648,-615.913097,0.00013699,2]
[324852624,1714373455657,-615.913097,0.00013699,2]
[324852625,1714373455667,-615.913097,0.00013699,2]
[324852626,1714373455676,-615.913097,0.00013699,2]
[324852627,1714373455685,-615.913097,0.00013699,2]
[324852628,1714373455694,-615.913097,0.00013699,2]
[324852629,1714373455704,-615.913097,0.00013699,2]
[324852630,1714373455716,-615.913097,0.00013699,2]
[324852631,1714373455725,-615.913097,0.00013699,2]
[324852632,1714373455735,-569.047712,0.00013699,2]
[324852633,1714373455743,-151.0,0.00013699,2]
[324852634,1714373455752,-569.047712,0.00013699,2]
[324852635,1714373455762,-569.047712,0.00013699,2]
[324852636,1714373455772,-569.047712,0.00013699,2]
[324852637,1714373455781,-569.047712,0.00013699,2]
[324852638,1714373455791,-569.047712,0.00013699,2]
[324852639,1714373455802,-151.0,0.00013699,2]
[324852640,1714373455921,-569.047712,0.00013699,2]
[324852641,1714373455931,-151.0,0.00013699,2]
[324852642,1714373455941,-569.047712,0.00013699,2]
[324852643,1714373455951,-151.0,0.00013699,2]
[324852644,1714373455961,-151.0,0.00013699,2]
[324852645,1714373455973,-151.0,0.00013699,2]
[324852646,1714373455983,-569.047712,0.00013699,2]
[324852647,1714373455992,-569.047712,0.00013699,2]
[324852648,1714373456002,-569.047712,0.00013699,2]
[324852649,1714373456013,-569.047712,0.00013699,2]
[324852650,1714373456023,-569.047712,0.00013699,2]
[324852651,1714373456032,-569.047712,0.00013699,2]
[324852652,1714373456042,-569.047712,0.00013699,2]
[324852653,1714373456052,-569.047712,0.00013699,2]
[324852654,1714373456061,-466.666828,0.00013699,2]
[324852655,1714373456071,-466.666828,0.00013699,2]
[324852656,1714373456080,-466.666828,0.00013699,2]
[324852657,1714373456089,-466.666828,0.00013699,2]
[324852658,1714373456099,-466.666828,0.00013699,2]
[324852659,1714373456108,-151.0,0.00013699,2]
[324852660,1714373456118,-466.666828,0.00013699,2]
[324852661,1714373456127,-151.0,0.00013699,2]
[324852662,1714373456136,-466.666828,0.00013699,2]
[324852663,1714373456146,-151.0,0.00013699,2]
[324852664,1714373456155,-466.666828,0.00013699,2]
[324852665,1714373456165,-151.0,0.00013699,2]
[324852666,1714373456175,-151.0,0.00013699,2]
[324852667,1714373456185,-151.0,0.00013699,2]
[324852668,1714373456196,-151.0,0.00013699,2]
[324852669,1714373456208,-466.666828,0.00013699,2]
[324852670,1714373456220,-151.0,0.00013699,2]
[324852671,1714373456230,-466.666828,0.00013699,2]
[324852672,1714373456239,-466.666828,0.00013699,2]
[324852673,1714373456250,-466.666828,0.00013699,2]
[324852674,1714373456259,-466.666828,0.00013699,2]
[324852675,1714373456268,-466.666828,0.00013699,2]
[324852676,1714373456278,-151.0,0.00013699,2]
[324852677,1714373456287,-466.666828,0.00013699,2]
[324852678,1714373456296,-151.0,0.00013699,2]
[324852679,1714373456308,-466.666828,0.00013699,2]
[324852680,1714373456318,-296.991596,0.00013699,2]
[324852681,1714373456328,-927.210443,0.00013699,2]
[324852682,1714373456338,-927.210443,0.00013699,2]
[324852683,1714373456347,-927.210443,0.00013699,2]
[324852684,1714373456359,-927.210443,0.00013699,2]
[324852685,1714373456370,-927.210443,0.00013699,2]
[324852686,1714373456380,-927.210443,0.00013699,2]
[324852687,1714373456390,-927.210443,0.00013699,2]
[324852688,1714373456400,-151.0,0.00013699,2]
[324852689,1714373456411,-927.210443,0.00013699,2]
[324852690,1714373456420,-151.0,0.00013699,2]
[324852691,1714373456429,-151.0,0.00013699,2]
[324852692,1714373456439,-151.0,0.00013699,2]
[324852693,1714373456449,-927.210443,0.00013699,2]
[324852694,1714373456458,-151.0,0.00013699,2]
[324852695,1714373456469,-927.210443,0.00013699,2]
[324852696,1714373456479,-927.210443,0.00013699,2]
[324852697,1714373456488,-927.210443,0.00013699,2]
[324852698,1714373456497,-927.210443,0.00013699,2]
[324852699,1714373456507,-927.210443,0.00013699,2]
[324852700,1714373456516,-927.210443,0.00013699,2]
[324852701,1714373456525,-927.210443,0.00013699,2]
[324852702,1714373456534,-151.0,0.00013699,2]
[324852703,1714373456543,-151.0,0.00013699,2]
[324852704,1714373456553,-202.717343,0.00013699,2]
[324852705,1714373456563,-1038.022456,0.00013699,2]
[324852706,1714373456572,-1038.022456,0.00013699,2]
[324852707,1714373456580,-1038.022456,0.00013699,2]
[324852708,1714373456590,-1038.022456,0.00013699,2]
[324852709,1714373456600,-1038.022456,0.00013699,2]
[324852710,1714373456609,-1038.022456,0.00013699,2]
[324852711,1714373456619,-1038.022456,0.00013699,2]
[324852712,1714373456629,-1038.022456,0.00013699,2]
[324852713,1714373456639,-1038.022456,0.00013699,2]
[324852714,1714373456649,-1038.022456,0.00013699,2]
[324852715,1714373456658,-1038.022456,0.00013699,2]
[324852716,1714373456667,-1038.022456,0.00013699,2]
[324852717,1714373456676,-1038.022456,0.00013699,2]
[324852718,1714373456686,-305.257001,0.00013699,2]
[324852719,1714373456695,-1038.022456,0.00013699,2]
[324852720,1714373456704,-305.257001,0.00013699,2]
[324852721,1714373456715,-1038.022456,0.00013699,2]
[324852722,1714373456724,-305.257001,0.00013699,2]
[324852723,1714373456734,-1038.022456,0.00013699,2]
[324852724,1714373456744,-305.257001,0.00013699,2]
[324852725,1714373456753,-305.257001,0.00013699,2]
[324852726,1714373456763,-305.257001,0.00013699,2]
[324852727,1714373456773,-305.257001,0.00013699,2]
[324852728,1714373456782,-305.257001,0.00013699,2]
[324852729,1714373456791,-305.257001,0.00013699,2]
[324852730,1714373456800,-305.257001,0.00013699,2]
[324852731,1714373456810,-305.257001,0.00013699,2]
[324852732,1714373456819,-305.257001,0.00013699,2]
[324852733,1714373456828,-305.257001,0.00013699,2]
[324852734,1714373456837,-405.158567,0.00013699,2]
[324852735,1714373456847,-305.257001,0.00013699,2]
[324852736,1714373456856,-305.257001,0.00013699,2]
[324852737,1714373456865,-405.158567,0.00013699,2]
[324852738,1714373456875,-305.257001,0.00013699,2]
[324852739,1714373456884,-405.158567,0.00013699,2]
[324852740,1714373456893,-405.158567,0.00013699,2]
[324852741,1714373456903,-405.158567,0.00013699,2]
[324852742,1714373456912,-405.158567,0.00013699,2]
[324852743,1714373456922,-405.158567,0.00013699,2]
[324852744,1714373456931,-405.158567,0.00013699,2]
[324852745,1714373456941,-405.158567,0.00013699,2]
[324852746,1714373456951,-405.158567,0.00013699,2]
[324852747,1714373456961,-405.158567,0.00013699,2]
[324852748,1714373456973,-405.158567,0.00013699,2]
[324852749,1714373456983,-405.158567,0.00013699,2]
[324852750,1714373456992,-405.158567,0.00013699,2]
[324852751,1714373457001,-405.158567,0.00013699,2]
[324852752,1714373457011,-405.158567,0.00013699,2]
[324852753,1714373457021,-151.0,0.00013699,2]
[324852754,1714373457030,-151.0,0.00013699,2]
[324852755,1714373457040,-151.0,0.00013699,2]
[324852756,1714373457050,-151.0,0.00013699,2]
[324852757,1714373457060,-151.0,0.00013699,2]
[324852758,1714373457070,-151.0,0.00013699,2]
[324852759,1714373457079,-2456.815602,0.00013699,2]
[324852760,1714373457089,-151.748716,0.00013699,2]
[324852761,1714373457099,-248.846797,0.00013699,2]
[324852762,1714373457108,-248.846797,0.00013699,2]
[324852763,1714373457118,-248.846797,0.00013699,2]
[324852764,1714373457127,-248.846797,0.00013699,2]
[324852765,1714373457136,-248.846797,0.00013699,2]
[324852766,1714373457145,-248.846792,0.00013699,2]
[324852767,1714373457154,-251.604025,0.00013699,2]
[324852768,1714373457163,-151.0,0.00013699,2]
[324852769,1714373457173,-151.0,0.00013699,2]
[324852770,1714373457182,-190.869089,0.00013699,2]
[324852771,1714373457197,-190.869089,0.00013699,2]
[324852772,1714373457206,-190.869089,0.00013699,2]
[324852773,1714373457218,-190.869089,0.00013699,2]
[324852774,1714373457229,-190.869089,0.00013699,2]
[324852775,1714373457239,-190.869089,0.00013699,2]
[324852776,1714373457248,-190.869089,0.00013699,2]
[324852777,1714373457258,-190.869091,0.00013699,2]
[324852778,1714373457271,-528.017137,0.00013699,2]
[324852779,1714373457281,-528.017137,0.00013699,2]
[324852780,1714373457291,-528.017137,0.00013699,2]
[324852781,1714373457302,-528.017137,0.00013699,2]
[324852782,1714373457311,-528.017137,0.00013699,2]
[324852783,1714373457321,-528.017137,0.00013699,2]
[324852784,1714373457332,-528.017137,0.00013699,2]
[324852785,1714373457341,-528.017144,0.00013699,2]
[324852786,1714373457352,-262.907288,0.00013699,2]
[324852787,1714373457363,-262.907288,0.00013699,2]
[324852788,1714373457373,-262.907288,0.00013699,2]
[324852789,1714373457383,-262.907293,0.00013699,2]
[324852790,1714373457395,-151.0,0.00013699,2]
[324852791,1714373457405,-151.0,0.00013699,2]
[324852792,1714373457416,-151.0,0.00013699,2]
[324852793,1714373457426,-151.0,0.00013699,2]
[324852794,1714373457435,-199.785048,0.00013699,2]
[324852795,1714373457445,-615.913097,0.00013699,2]
[324852796,1714373457454,-615.913097,0.00013699,2]
[324852797,1714373457464,-615.913097,0.00013699,2]
[324852798,1714373457476,-615.9131,0.00013699,2]
[324852799,1714373457487,-569.047712,0.00013699,2]
[324852800,1714373457497,-569.047712,0.00013699,2]
[324852801,1714373457507,-569.047712,0.00013699,2]
[324852802,1714373457517,-569.047718,0.00013699,2]
[324852803,1714373457527,-466.666828,0.00013699,2]
[324852804,1714373457538,-466.666828,0.00013699,2]
[324852805,1714373457547,-151.0,0.00013699,2]
[324852806,1714373457557,-151.0,0.00013699,2]
[324852807,1714373457566,-466.666828,0.00013699,2]
[324852808,1714373457576,-466.666824,0.00013699,2]
[324852809,1714373457585,-927.210443,0.00013699,2]
[324852810,1714373457595,-927.210443,0.00013699,2]
[324852811,1714373457604,-927.210443,0.00013699,2]
[324852812,1714373457614,-927.210446,0.00013699,2]
[324852813,1714373457624,-1038.022456,0.00013699,2]
[324852814,1714373457633,-1038.022456,0.00013699,2]
[324852815,1714373457642,-1038.022456,0.00013699,2]
[324852816,1714373457651,-1038.022458,0.00013699,2]
[324852817,1714373457661,-305.257001,0.00013699,2]
[324852818,1714373457670,-305.257001,0.00013699,2]
[324852819,1714373457679,-305.257001,0.00013699,2]
[324852820,1714373457689,-305.25701,0.00013699,2]
[324852821,1714373457698,-405.158567,0.00013699,2]
[324852822,1714373457708,-405.158567,0.00013699,2]
[324852823,1714373457720,-405.158567,0.00013699,2]
[324852824,1714373457730,-405.158571,0.00013699,2]
[324852825,1714373457739,-153.0,0.000137,2]
[324852826,1714373457748,-153.0,0.000137,2]
[324852827,1714373457757,-153.0,0.000137,2]
[324852828,1714373457766,-153.0,0.000137,2]
[324852829,1714373457775,-730.61014924,0.000138,2]
[324852830,1714373457784,-153.0,0.000138,2]
[324852831,1714373457793,-500.0,0.00013972,2]
[324852832,1714373457802,-500.0,0.00013972,2]
[324852833,1714373457811,-347.8472903,0.00013972,2]
[324852834,1714373457821,-500.0,0.00013972,2]
[324852835,1714373457830,-315.21947189,0.00013972,2]
[324852836,1714373457839,-500.0,0.00013972,2]
[324852837,1714373457848,-285.70800868,0.00013972,2]
[324852838,1714373457859,-500.0,0.00013972,2]
[324852839,1714373457868,-500.0,0.00013972,2]
[324852840,1714373457877,-176.60487412,0.00013972,2]
[324852841,1714373457886,-500.0,0.00013972,2]
[324852842,1714373457895,-500.0,0.00013972,2]
[324852843,1714373457905,-500.0,0.00013972,2]
[324852844,1714373457914,-500.0,0.00013972,2]
[324852845,1714373457923,-523.85,0.00013972,2]
[324852846,1714373457932,-500.0,0.00013972,2]
[324852847,1714373457942,-500.0,0.00013972,2]
[324852848,1714373457951,-508.84,0.00013972,2]
[324852849,1714373457960,-500.0,0.00013972,2]
[324852850,1714373457971,-500.0,0.00013972,2]
[324852851,1714373457980,-500.0,0.00013972,2]
[324852852,1714373457989,-500.0,0.00013972,2]
[324852853,1714373457998,-500.0,0.00013972,2]
[324852854,1714373458008,-500.0,0.00013972,2]
[324852855,1714373458017,-500.0,0.00013972,2]
[324852856,1714373458027,-625.82,0.00013972,2]
[324852857,1714373458043,-500.0,0.00013972,2]
[324852858,1714373458053,-500.0,0.00013972,2]
[324852859,1714373458063,-500.0,0.00013972,2]
[324852860,1714373458171,-500.0,0.00013972,2]
[324852861,1714373458181,-500.0,0.00013972,2]
[324852862,1714373458191,-1626.12,0.00013972,2]
[324852863,1714373458204,-500.0,0.00013972,2]
[324852864,1714373458214,-500.0,0.00013972,2]
[324852865,1714373458225,-500.0,0.00013972,2]
[324852866,1714373458236,-500.0,0.00013972,2]
[324852867,1714373458246,-500.0,0.00013972,2]
[324852868,1714373458256,-500.0,0.00013972,2]
[324852869,1714373458265,-611.54,0.00013972,2]
[324852870,1714373458274,-500.0,0.00013972,2]
[324852871,1714373458284,-559.33,0.00013972,2]
[324852872,1714373458294,-500.0,0.00013972,2]
[324852873,1714373458303,-608.08,0.00013972,2]
[324852874,1714373458311,-500.0,0.00013972,2]
[324852875,1714373458321,-500.0,0.00013972,2]
[324852876,1714373458330,-500.0,0.00013972,2]
[324852877,1714373458339,-687.07,0.00013972,2]
[324852878,1714373458348,-500.0,0.00013972,2]
[324852879,1714373458357,-500.0,0.00013972,2]
[324852880,1714373458367,-504.72,0.00013972,2]
[324852881,1714373458376,-500.0,0.00013972,2]
[324852882,1714373458385,-500.0,0.00013972,2]
[324852883,1714373458394,-832.64,0.00013972,2]
[324852884,1714373458404,-500.0,0.00013972,2]
[324852885,1714373458413,-500.0,0.00013972,2]
[324852886,1714373458422,-500.0,0.00013972,2]
[324852887,1714373458431,-515.01,0.00013972,2]
[324852888,1714373458440,-358.23380476,0.00013972,2]
[324852889,1714373458450,-1105.2,0.00013972,2]
[324852890,1714373458459,-630.39,0.00013972,2]
[324852891,1714373458470,-500.0,0.00013972,2]
[324852892,1714373458479,-604.09,0.00013972,2]
[324852893,1714373458488,-500.0,0.00013972,2]
[324852894,1714373458499,-169.82685591,0.00013972,2]
[324852895,1714373458508,-500.0,0.00013972,2]
[324852896,1714373458517,-500.0,0.00013972,2]
[324852897,1714373458527,-500.0,0.00013972,2]
[324852898,1714373458536,-693.58,0.00013972,2]
[324852899,1714373458545,-500.0,0.00013972,2]
[324852900,1714373458554,-591.07,0.00013972,2]
[324852901,1714373458564,-598.14,0.00013972,2]
[324852902,1714373458574,-500.0,0.00013972,2]
[324852903,1714373458583,-673.38,0.00013972,2]
[324852904,1714373458592,-500.0,0.00013972,2]
[324852905,1714373458601,-533.22,0.00013972,2]
[324852906,1714373458611,-1230.36,0.00013972,2]
[324852907,1714373458620,-500.0,0.00013972,2]
[324852908,1714373458629,-1147.49,0.00013972,2]
[324852909,1714373458639,-500.0,0.00013972,2]
[324852910,1714373458648,-1302.49,0.00013972,2]
[324852911,1714373458657,-844.49,0.00013972,2]
[324852912,1714373458667,-500.0,0.00013972,2]
[324852913,1714373458675,-500.0,0.00013972,2]
[324852914,1714373458684,-614.75,0.00013972,2]
[324852915,1714373458693,-1388.78,0.00013972,2]
[324852916,1714373458703,-500.0,0.00013972,2]
[324852917,1714373458712,-500.0,0.00013972,2]
[324852918,1714373458723,-623.41,0.00013972,2]
[324852919,1714373458733,-500.0,0.00013972,2]
[324852920,1714373458742,-500.0,0.00013972,2]
[324852921,1714373458752,-797.81,0.00013972,2]
[324852922,1714373458761,-500.0,0.00013972,2]
[324852923,1714373458771,-590.29,0.00013972,2]
[324852924,1714373458780,-500.0,0.00013972,2]
[324852925,1714373458789,-807.83,0.00013972,2]
[324852926,1714373458798,-607.0,0.00013972,2]
[324852927,1714373458807,-500.0,0.00013972,2]
[324852928,1714373458816,-940.83,0.00013972,2]
[324852929,1714373458825,-590.50101137,0.00013972,2]
[324852930,1714373458835,-500.0,0.00013972,2]
[324852931,1714373458844,-500.0,0.00013972,2]
[324852932,1714373458853,-500.0,0.00013972,2]
[324852933,1714373458862,-500.0,0.00013972,2]
[324852934,1714373458872,-500.0,0.00013972,2]
[324852935,1714373458881,-782.16,0.00013972,2]
[324852936,1714373458890,-500.0,0.00013972,2]
[324852937,1714373458899,-520.06,0.00013972,2]
[324852938,1714373458908,-500.0,0.00013972,2]
[324852939,1714373458918,-500.0,0.00013972,2]
[324852940,1714373458927,-500.0,0.00013972,2]
[324852941,1714373458936,-564.0,0.00013972,2]
[324852942,1714373458945,-851.11,0.00013972,2]
[324852943,1714373458955,-510.47,0.00013972,2]
[324852944,1714373458964,-500.0,0.00013972,2]
[324852945,1714373458976,-500.0,0.00013972,2]
[324852946,1714373458985,-1533.33,0.00013972,2]
[324852947,1714373458994,-1895.96,0.00013972,2]
[324852948,1714373459004,-1322.31,0.00013972,2]
[324852949,1714373459014,-500.0,0.00013972,2]
[324852950,1714373459032,-500.0,0.00013972,2]
[324852951,1714373459050,-500.0,0.00013972,2]
[324852952,1714373459070,-500.0,0.00013972,2]
[324852953,1714373459091,-1437.53,0.00013972,2]
[324852954,1714373459110,-500.0,0.00013972,2]
[324852955,1714373459132,-500.0,0.00013972,2]
[324852956,1714373459152,-1191.98,0.00013972,2]
[324852957,1714373459173,-500.0,0.00013972,2]
[324852958,1714373459192,-500.0,0.00013972,2]
[324852959,1714373459203,-1134.6,0.00013972,2]
[324852960,1714373459213,-1094.75,0.00013972,2]
[324852961,1714373459224,-511.12054512,0.00013972,2]
[324852962,1714373459234,-510.32,0.00013972,2]
[324852963,1714373459243,-2552.95,0.00013972,2]
[324852964,1714373459252,-1704.43,0.00013972,2]
[324852965,1714373459261,-500.0,0.00013972,2]
[324852966,1714373459270,-1486.42,0.00013972,2]
[324852967,1714373459279,-500.0,0.00013972,2]
[324852968,1714373459288,-223.46031842,0.00013972,2]
[324852969,1714373459297,-500.0,0.00013972,2]
[324852970,1714373459306,-500.0,0.00013972,2]
[324852971,1714373459315,-500.0,0.00013972,2]
[324852972,1714373459326,-500.0,0.00013972,2]
[324852973,1714373459335,-500.0,0.00013972,2]
[324852974,1714373459344,-500.0,0.00013972,2]
[324852975,1714373459353,-500.0,0.00013972,2]
[324852976,1714373459362,-500.0,0.00013972,2]
[324852977,1714373459371,-500.0,0.00013972,2]
[324852978,1714373459379,-725.26,0.00013972,2]
[324852979,1714373459389,-500.0,0.00013972,2]
[324852980,1714373459398,-500.0,0.00013972,2]
[324852981,1714373459407,-500.0,0.00013972,2]
[324852982,1714373459416,-844.8,0.00013972,2]
[324852983,1714373459426,-663.85,0.00013972,2]
[324852984,1714373459435,-500.0,0.00013972,2]
[324852985,1714373459443,-500.0,0.00013972,2]
[324852986,1714373459452,-590.93,0.00013972,2]
[324852987,1714373459463,-500.0,0.00013972,2]
[324852988,1714373459474,-500.0,0.00013972,2]
[324852989,1714373459483,-500.0,0.00013972,2]
[324852990,1714373459491,-500.0,0.00013972,2]
[324852991,1714373459501,-500.0,0.00013972,2]
[324852992,1714373459510,-379.98478294,0.00013972,2]
[324852993,1714373459519,-500.0,0.00013972,2]
[324852994,1714373459528,-500.0,0.00013972,2]
[324852995,1714373459536,-500.0,0.00013972,2]
[324852996,1714373459546,-963.94,0.00013972,2]
[324852997,1714373459555,-500.0,0.00013972,2]
[324852998,1714373459563,-500.0,0.00013972,2]
[324852999,1714373459572,-790.18,0.00013972,2]
[324853000,1714373459581,-500.0,0.00013972,2]
[324853001,1714373459591,-500.0,0.00013972,2]
[324853002,1714373459600,-1385.15,0.00013972,2]
[324853003,1714373459609,-904.16,0.00013972,2]
[324853004,1714373459619,-556.73,0.00013972,2]
[324853005,1714373459628,-500.0,0.00013972,2]
[324853006,1714373459637,-500.0,0.00013972,2]
[324853007,1714373459646,-2612.66,0.00013972,2]
[324853008,1714373459655,-500.0,0.00013972,2]
[324853009,1714373459664,-502.11494474,0.00013972,2]
[324853010,1714373459674,-500.0,0.00013972,2]
[324853011,1714373459683,-670.19,0.00013972,2]
[324853012,1714373459692,-5705.05,0.00013972,2]
[324853013,1714373459700,-500.0,0.00013972,2]
[324853014,1714373459709,-3685.88,0.00013972,2]
[324853015,1714373459719,-500.0,0.00013972,2]
[324853016,1714373459728,-500.0,0.00013972,2]
[324853017,1714373459737,-500.0,0.00013972,2]
[324853018,1714373459747,-500.0,0.00013972,2]
[324853019,1714373459756,-500.0,0.00013972,2]
[324853020,1714373459765,-500.0,0.00013972,2]
[324853021,1714373459775,-160.98790829,0.00013972,2]
[324853022,1714373459784,-500.0,0.00013972,2]
[324853023,1714373459793,-500.0,0.00013972,2]
[324853024,1714373459802,-3055.4,0.00013972,2]
[324853025,1714373459810,-500.0,0.00013972,2]
[324853026,1714373459819,-408.64020841,0.00013972,2]
[324853027,1714373459829,-163.69985227,0.00013972,2]
[324853028,1714373459838,-943.99,0.00013972,2]
[324853029,1714373459847,-500.0,0.00013972,2]
[324853030,1714373459855,-500.0,0.00013972,2]
[324853031,1714373459865,-676.52,0.00013972,2]
[324853032,1714373459875,-2057.47,0.00013972,2]
[324853033,1714373459885,-156.19612734,0.00013972,2]
[324853034,1714373459896,-598.25,0.00013972,2]
[324853035,1714373459906,-500.0,0.00013972,2]
[324853036,1714373459916,-1272.21,0.00013972,2]
[324853037,1714373459926,-7316.87,0.00013972,2]
[324853038,1714373459935,-500.0,0.00013972,2]
[324853039,1714373459944,-726.9,0.00013972,2]
[324853040,1714373459954,-500.0,0.00013972,2]
[324853041,1714373459963,-797.11,0.00013972,2]
[324853042,1714373459975,-604.72,0.00013972,2]
[324853043,1714373459984,-500.0,0.00013972,2]
[324853044,1714373459993,-500.0,0.00013972,2]
[324853045,1714373460003,-1382.46,0.00013972,2]
[324853046,1714373460012,-500.0,0.00013972,2]
[324853047,1714373460022,-2899.35,0.00013972,2]
[324853048,1714373460031,-643.79,0.00013972,2]
[324853049,1714373460041,-1036.38,0.00013972,2]
[324853050,1714373460050,-500.0,0.00013972,2]
[324853051,1714373460059,-500.0,0.00013972,2]
[324853052,1714373460069,-500.0,0.00013972,2]
[324853053,1714373460079,-500.0,0.00013972,2]
[324853054,1714373460087,-500.0,0.00013972,2]
[324853055,1714373460097,-500.0,0.00013972,2]
[324853056,1714373460106,-3783.63,0.00013972,2]
[324853057,1714373460115,-567.55,0.00013972,2]
[324853058,1714373460124,-500.0,0.00013972,2]
[324853059,1714373460133,-1762.71,0.00013972,2]
[324853060,1714373460143,-544.02,0.00013972,2]
[324853061,1714373460152,-500.0,0.00013972,2]
[324853062,1714373460161,-500.0,0.00013972,2]
[324853063,1714373460264,-909.69,0.00013972,2]
[324853064,1714373460275,-500.0,0.00013972,2]
[324853065,1714373460285,-1544.95,0.00013972,2]
[324853066,1714373460295,-566.35,0.00013972,2]
[324853067,1714373460304,-187.23358882,0.00013972,2]
[324853068,1714373460313,-1632.08,0.00013972,2]
[324853069,1714373460323,-2536.93,0.00013972,2]
[324853070,1714373460332,-16167.34,0.00013972,2]
[324853071,1714373460342,-844.47,0.00013972,2]
[324853072,1714373460352,-3184.94,0.00013972,2]
[324853073,1714373460362,-1248.72,0.00013972,2]
[324853074,1714373460371,-705.06,0.00013972,2]
[324853075,1714373460381,-476.69842979,0.00013972,2]
[324853076,1714373460390,-500.0,0.00013972,2]
[324853077,1714373460399,-5367.9,0.00013972,2]
[324853078,1714373460408,-603.55,0.00013972,2]
[324853079,1714373460417,-500.0,0.00013972,2]
[324853080,1714373460427,-1338.49,0.00013972,2]
[324853081,1714373460436,-500.0,0.00013972,2]
[324853082,1714373460446,-752.29,0.00013972,2]
[324853083,1714373460455,-803.38,0.00013972,2]
[324853084,1714373460464,-633.87869113,0.00013972,2]
[324853085,1714373460476,-500.0,0.00013972,2]
[324853086,1714373460486,-12574.48,0.00013972,2]
[324853087,1714373460495,-12192.24,0.00013972,2]
[324853088,1714373460504,-500.0,0.00013972,2]
[324853089,1714373460513,-998.22,0.00013972,2]
[324853090,1714373460523,-5507.92,0.00013972,2]
[324853091,1714373460533,-589.37,0.00013972,2]
[324853092,1714373460542,-992.33,0.00013972,2]
[324853093,1714373460551,-547.76568082,0.00013972,2]
[324853094,1714373460560,-500.0,0.00013972,2]
[324853095,1714373460570,-500.0,0.00013972,2]
[324853096,1714373460579,-428.26715399,0.00014,2]
[324853097,1714373460588,-434.54,0.00014032,2]
[324853098,1714373460598,-212.501,0.00014032,2]
[324853099,1714373460607,-150.287,0.00014032,2]
[324853100,1714373460615,-224.837,0.00014032,2]
[324853101,1714373460625,-620.00752541,0.00014138,2]
[324853102,1714373460634,-500.0,0.00014246,2]
[324853103,1714373460643,-500.0,0.00014246,2]
[324853104,1714373460652,-500.0,0.00014246,2]
[324853105,1714373460661,-500.0,0.00014246,2]
[324853106,1714373460670,-500.0,0.00014246,2]
[324853107,1714373460680,-500.0,0.00014246,2]
[324853108,1714373460689,-353.21011782,0.00014246,2]
[324853109,1714373460698,-337.16472533,0.00014246,2]
[324853110,1714373460707,-500.0,0.00014246,2]
[324853111,1714373460718,-500.0,0.00014246,2]
[324853112,1714373460731,-523.85,0.00014246,2]